fUSD/lending_fUSD_20240814
["ID","MTS","AMOUNT","RATE_DAILY","PERIOD"]
[334863218,1723610897034,500.0,0.00014509,2]
[334863219,1723610897094,500.0,0.00014244,2]
[334863220,1723610897290,500.0,0.00014783,2]
[334863221,1723610897351,1332.83,0.00014235,2]
[334863222,1723610897397,500.0,0.00014518,2]
[334863223,1723610897595,1332.83,0.00014509,2]
[334863224,1723610897640,500.0,0.00014792,2]
[334863225,1723610897872,1332.83,0.00014783,2]
[334863226,1723610898888,500.0,0.00014244,2]
[334863227,1723610899165,500.0,0.00014518,2]
[334863228,1723610899549,500.0,0.00014792,2]
[334863229,1723610899726,500.0,0.00014244,2]
[334863230,1723610900025,500.0,0.00014518,2]
[334863232,1723610900511,358.62125779,0.00014792,2]
[334863233,1723610901512,537.76457582,0.00014235,2]
[334863235,1723610904067,551.88,0.00014235,2]
[334863236,1723610904294,600.83,0.00014508,2]
[334863237,1723610904385,551.88,0.00014509,2]
[334863238,1723610904605,600.83,0.00014782,2]
[334863239,1723610904682,551.88,0.00014783,2]
[334863240,1723610904800,500.0,0.00014235,2]
[334863241,1723610905076,500.0,0.00014509,2]
[334863242,1723610905117,2770.41,0.00014244,2]
[334863243,1723610905335,500.0,0.00014783,2]
[334863244,1723610905376,2770.41,0.00014518,2]
[334863245,1723610905629,2770.41,0.00014792,2]
[334863246,1723610905674,500.0,0.00014235,2]
[334863247,1723610905717,500.0,0.00014244,2]
[334863248,1723610906247,500.0,0.00014509,2]
[334863249,1723610906295,500.0,0.00014518,2]
[334863250,1723610906691,500.0,0.00014244,2]
[334863251,1723610906739,500.0,0.00014783,2]
[334863252,1723610906787,500.0,0.00014792,2]
[334863253,1723610906933,500.0,0.00014518,2]
[334863254,1723610907820,726.79,0.00014508,2]
[334863255,1723610908211,726.79,0.00014782,2]
[334863256,1723610908328,500.0,0.00014792,2]
[334863257,1723610909244,500.0,0.00014244,2]
[334863258,1723610909539,500.0,0.00014518,2]
[334863259,1723610909824,500.0,0.00014792,2]
[334863260,1723610913493,679.35,0.00014508,2]
[334863261,1723610913785,679.35,0.00014782,2]
[334863262,1723610915299,500.0,0.00014235,2]
[334863263,1723610915584,500.0,0.00014509,2]
[334863264,1723610915815,500.0,0.00014235,2]
[334863265,1723610915863,500.0,0.00014783,2]
[334863266,1723610916321,500.0,0.00014509,2]
[334863267,1723610916564,500.0,0.00014783,2]
[334863268,1723610917759,613.51,0.00014244,2]
[334863269,1723610918038,613.51,0.00014518,2]
[334863270,1723610918309,613.51,0.00014792,2]
[334863271,1723610919569,1227.87,0.00014244,2]
[334863272,1723610919854,1227.87,0.00014518,2]
[334863273,1723610920213,1227.87,0.00014792,2]
[334863274,1723610921235,772.99,0.00014244,2]
[334863275,1723610921447,772.99,0.00014518,2]
[334863276,1723610921717,772.99,0.00014792,2]
[334863277,1723610923729,500.0,0.00014235,2]
[334863278,1723610923853,500.0,0.00014244,2]
[334863279,1723610924027,542.83630909,0.00014509,2]
[334863280,1723610924124,500.0,0.00014518,2]
[334863281,1723610924391,500.0,0.00014792,2]
[334863282,1723610925629,602.44,0.00014508,2]
[334863283,1723610925902,602.44,0.00014782,2]
[334863284,1723610926844,500.0,0.00014244,2]
[334863285,1723610927108,500.0,0.00014518,2]
[334863286,1723610927363,500.0,0.00014792,2]
[334863287,1723610929411,538.92,0.00014235,2]
[334863288,1723610929688,538.92,0.00014509,2]
[334863289,1723610929941,538.92,0.00014783,2]
[334863290,1723610930731,517.84,0.00014235,2]
[334863291,1723610931095,500.0,0.00014244,2]
[334863292,1723610931136,517.84,0.00014509,2]
[334863293,1723610931844,500.0,0.00014518,2]
[334863294,1723610931880,517.84,0.00014783,2]
[334863295,1723610931949,500.0,0.00014244,2]
[334863296,1723610931985,500.0,0.00014792,2]
[334863297,1723610932118,500.0,0.00014518,2]
[334863298,1723610932177,500.0,0.00014792,2]
[334863299,1723610933787,500.0,0.00014235,2]
[334863300,1723610934066,500.0,0.00014509,2]
[334863301,1723610934326,500.0,0.00014783,2]
[334863302,1723610936748,738.74,0.00014235,2]
[334863303,1723610936850,2074.35,0.00014508,2]
[334863304,1723610937046,738.74,0.00014509,2]
[334863305,1723610937133,2074.35,0.00014782,2]
[334863306,1723610937292,738.74,0.00014783,2]
[334863307,1723610937371,500.0,0.00014244,2]
[334863308,1723610937553,575.98,0.00014508,2]
[334863309,1723610937648,500.0,0.00014518,2]
[334863310,1723610937943,575.98,0.00014782,2]
[334863311,1723610937989,500.0,0.00014792,2]
[334863312,1723610939407,500.0,0.00014244,2]
[334863313,1723610939672,500.0,0.00014518,2]
[334863314,1723610939928,500.0,0.00014792,2]
[334863315,1723610941353,500.0,0.00014235,2]
[334863316,1723610941617,500.0,0.00014509,2]
[334863317,1723610942155,500.0,0.00014783,2]
[334863318,1723610943333,5550.52,0.00014244,2]
[334863319,1723610943602,5550.52,0.00014518,2]
[334863320,1723610943877,5550.52,0.00014792,2]
[334863321,1723610945032,500.0,0.00014235,2]
[334863322,1723610945323,500.0,0.00014509,2]
[334863323,1723610945650,500.0,0.00014783,2]
[334863324,1723610946300,820.41,0.00014508,2]
[334863325,1723610946625,820.41,0.00014782,2]
[334863326,1723610947215,500.0,0.00014235,2]
[334863327,1723610947473,500.0,0.00014509,2]
[334863328,1723610947755,500.0,0.00014783,2]
[334863329,1723610948376,500.0,0.00014235,2]
[334863330,1723610948598,500.0,0.00014509,2]
[334863331,1723610948843,369.55299743,0.00014783,2]
[334863332,1723610948969,500.0,0.00014244,2]
[334863333,1723610949236,500.0,0.00014518,2]
[334863334,1723610949504,500.0,0.00014792,2]
[334863335,1723610949697,800.28,0.00014235,2]
[334863336,1723610949963,800.28,0.00014509,2]
[334863337,1723610950702,800.28,0.00014783,2]
[334863338,1723610950741,500.0,0.00014244,2]
[334863339,1723610950945,500.0,0.00014235,2]
[334863340,1723610950994,500.0,0.00014518,2]
[334863341,1723610951217,500.0,0.00014509,2]
[334863342,1723610951262,500.0,0.00014792,2]
[334863343,1723610951484,500.0,0.00014783,2]
[334863344,1723610952671,314.10448177,0.00014235,2]
[334863345,1723610952948,525.93,0.00014244,2]
[334863346,1723610953195,525.93,0.00014518,2]
[334863347,1723610953459,525.93,0.00014792,2]
[334863348,1723610954693,737.26,0.00014244,2]
[334863349,1723610954951,737.26,0.00014518,2]
[334863350,1723610955108,500.0,0.00014235,2]
[334863351,1723610955548,737.26,0.00014792,2]
[334863352,1723610955606,1257.48,0.00014508,2]
[334863353,1723610955659,500.0,0.00014509,2]
[334863354,1723610955801,1257.48,0.00014782,2]
[334863355,1723610955858,500.0,0.00014783,2]
[334863356,1723610957654,691.79,0.00014487,2]
[334863357,1723610958600,565.07,0.00014235,2]
[334863358,1723610958881,565.07,0.00014509,2]
[334863359,1723610959214,565.07,0.00014783,2]
[334863360,1723610961637,500.0,0.00014782,2]
[334863361,1723610962314,1489.39,0.00014244,2]
[334863362,1723610962849,1489.39,0.00014518,2]
[334863363,1723610962911,1489.39,0.00014792,2]
[334863364,1723610964025,500.0,0.00014244,2]
[334863365,1723610964281,500.0,0.00014518,2]
[334863366,1723610964334,804.67,0.00014244,2]
[334863367,1723610964550,500.0,0.00014792,2]
[334863368,1723610964683,804.67,0.00014518,2]
[334863369,1723610965460,773.34,0.00014244,2]
[334863370,1723610965693,804.67,0.00014792,2]
[334863371,1723610965744,773.34,0.00014518,2]
[334863372,1723610965992,773.34,0.00014792,2]
[334863373,1723610966042,500.0,0.00014508,2]
[334863374,1723610966298,500.0,0.00014782,2]
[334863375,1723610967705,759.8,0.00014235,2]
[334863376,1723610967995,759.8,0.00014509,2]
[334863377,1723610968236,500.0,0.00014235,2]
[334863378,1723610968280,759.8,0.00014783,2]
[334863379,1723610968566,500.0,0.00014509,2]
[334863380,1723610969155,500.0,0.00014783,2]
[334863381,1723610971842,567.07,0.00014235,2]
[334863382,1723610973385,567.07,0.00014509,2]
[334863383,1723610973453,567.07,0.00014783,2]
[334863384,1723610975131,500.0,0.00014244,2]
[334863385,1723610975393,500.0,0.00014518,2]
[334863386,1723610975781,500.0,0.00014792,2]
[334863387,1723610975870,527.93,0.00014235,2]
[334863388,1723610976122,527.93,0.00014509,2]
[334863389,1723610976377,527.93,0.00014783,2]
[334863390,1723610977513,1278.58,0.00014244,2]
[334863391,1723610977814,1278.58,0.00014518,2]
[334863392,1723610978084,1278.58,0.00014792,2]
[334863393,1723610978858,500.0,0.00014244,2]
[334863394,1723610979150,500.0,0.00014518,2]
[334863395,1723610979449,500.0,0.00014792,2]
[334863396,1723610980977,801.07,0.00014235,2]
[334863397,1723610981023,500.0,0.00014235,2]
[334863398,1723610981238,801.07,0.00014509,2]
[334863399,1723610981286,500.0,0.00014509,2]
[334863400,1723610981494,801.07,0.00014783,2]
[334863401,1723610981543,500.0,0.00014783,2]
[334863402,1723610984051,500.0,0.00014508,2]
[334863403,1723610984131,500.0,0.00014235,2]
[334863404,1723610984192,500.0,0.00014782,2]
[334863405,1723610984295,500.0,0.00014509,2]
[334863408,1723610984565,500.0,0.00014783,2]
[334863409,1723610987237,500.0,0.00014244,2]
[334863410,1723610987507,500.0,0.00014518,2]
[334863411,1723610987778,500.0,0.00014792,2]
[334863412,1723610989417,526.71,0.00014244,2]
[334863413,1723610989877,1971.0,0.00014244,2]
[334863414,1723610989994,526.71,0.00014518,2]
[334863415,1723610990174,1971.0,0.00014518,2]
[334863416,1723610990409,1971.0,0.00014792,2]
[334863417,1723610990452,526.71,0.00014792,2]
[334863418,1723610990711,500.0,0.00014235,2]
[334863419,1723610990948,500.0,0.00014235,2]
[334863420,1723610991217,166.87750048,0.00014509,2]
[334863421,1723610991313,500.0,0.00014509,2]
[334863422,1723610991425,3543.13,0.00014508,2]
[334863423,1723610991616,500.0,0.00014783,2]
[334863424,1723610991717,500.0,0.00014235,2]
[334863425,1723610991759,3543.13,0.00014782,2]
[334863426,1723610991924,500.0,0.00014509,2]
[334863427,1723610992093,500.0,0.00014244,2]
[334863428,1723610992183,500.0,0.00014783,2]
[334863429,1723610992361,500.0,0.00014518,2]
[334863430,1723610992647,500.0,0.00014792,2]
[334863431,1723610993352,500.0,0.00014235,2]
[334863434,1723610994293,500.0,0.00014509,2]
[334863437,1723610994376,500.0,0.00014783,2]
[334863438,1723610999204,514.58,0.00014244,2]
[334863439,1723610999480,514.58,0.00014518,2]
[334863440,1723610999618,500.0,0.00014244,2]
[334863441,1723610999755,514.58,0.00014792,2]
[334863442,1723610999949,500.0,0.00014518,2]
[334863443,1723611000244,500.0,0.00014792,2]
[334863444,1723611000507,594.19,0.00014244,2]
[334863445,1723611000707,3747.65,0.00014244,2]
[334863446,1723611000975,3747.65,0.00014518,2]
[334863448,1723611001104,594.19,0.00014518,2]
[334863449,1723611001385,594.19,0.00014792,2]
[334863450,1723611001476,3747.65,0.00014792,2]
[334863451,1723611002471,6696.24,0.00014508,2]
[334863452,1723611002755,6696.24,0.00014782,2]
[334863453,1723611005093,500.0,0.00014235,2]
[334863454,1723611005432,500.0,0.00014509,2]
[334863455,1723611005817,500.0,0.00014783,2]
[334863456,1723611006559,537.76457582,0.00014244,2]
[334863457,1723611008520,500.0,0.00014244,2]
[334863458,1723611008810,500.0,0.00014518,2]
[334863459,1723611009077,500.0,0.00014792,2]
[334863460,1723611010808,916.47,0.00014244,2]
[334863461,1723611011074,916.47,0.00014518,2]
[334863462,1723611011145,500.0,0.00014235,2]
[334863463,1723611011409,500.0,0.00014235,2]
[334863464,1723611011460,500.0,0.00014509,2]
[334863465,1723611011505,916.47,0.00014792,2]
[334863466,1723611011551,355.85217469,0.00014235,2]
[334863467,1723611011683,500.0,0.00014783,2]
[334863468,1723611012067,500.0,0.00014509,2]
[334863469,1723611012130,500.0,0.00014783,2]
[334863470,1723611014029,836.26,0.00014244,2]
[334863471,1723611014341,836.26,0.00014518,2]
[334863472,1723611014605,836.26,0.00014792,2]
[334863473,1723611019145,500.0,0.00014235,2]
[334863474,1723611019448,193.915,0.00013698,2]
[334863475,1723611019506,500.0,0.00014509,2]
[334863476,1723611019734,500.0,0.00014783,2]
[334863477,1723611019790,1243.75,0.00014244,2]
[334863478,1723611020115,1243.75,0.00014518,2]
[334863479,1723611020336,1243.75,0.00014792,2]
[334863480,1723611021745,500.0,0.00014235,2]
[334863481,1723611021801,500.0,0.00014508,2]
[334863482,1723611022013,500.0,0.00014509,2]
[334863483,1723611022056,500.0,0.00014782,2]
[334863484,1723611022308,500.0,0.00014783,2]
[334863485,1723611024762,500.0,0.00014235,2]
[334863486,1723611025432,500.0,0.00014509,2]
[334863487,1723611025628,500.0,0.00014783,2]
[334863488,1723611025673,500.0,0.00014782,2]
[334863489,1723611026006,500.0,0.00014244,2]
[334863490,1723611026057,500.0,0.00014235,2]
[334863491,1723611026270,500.0,0.00014518,2]
[334863492,1723611026322,500.0,0.00014509,2]
[334863493,1723611026565,500.0,0.00014792,2]
[334863494,1723611026618,500.0,0.00014783,2]
[334863495,1723611026991,863.04,0.00014508,2]
[334863496,1723611027271,863.04,0.00014782,2]
[334863497,1723611028095,500.0,0.00014235,2]
[334863498,1723611028364,500.0,0.00014509,2]
[334863499,1723611028535,500.0,0.00014244,2]
[334863500,1723611028658,500.0,0.00014783,2]
[334863501,1723611028783,500.0,0.00014518,2]
[334863502,1723611029024,303.90593034,0.00014999,2]
[334863503,1723611029075,500.0,0.00014792,2]
[334863504,1723611030736,500.0,0.00014782,2]
[334863515,1723611031416,-150.0,0.00015041,2]
[334863516,1723611031426,-1000.0,0.00015045,2]
[334863517,1723611031438,-1000.0,0.00015047,2]
[334863518,1723611031448,-1000.0,0.00015053,2]
[334863520,1723611031457,-300.0,0.00015055,2]
[334863522,1723611031467,-300.0,0.00015055,2]
[334863523,1723611031476,-3090.93,0.00015056,2]
[334863524,1723611031486,-1393.0,0.00015056,2]
[334863525,1723611031496,-500.0,0.00015056,2]
[334863526,1723611031506,-500.0,0.00015056,2]
[334863527,1723611031518,-500.0,0.00015056,2]
[334863528,1723611031528,-500.0,0.00015056,2]
[334863529,1723611031538,-1906.31,0.00015056,2]
[334863530,1723611031547,-500.0,0.00015056,2]
[334863531,1723611031556,-534.03,0.00015056,2]
[334863532,1723611031565,-655.51,0.00015056,2]
[334863533,1723611031574,-3849.04,0.00015056,2]
[334863534,1723611031583,-600.83,0.00015056,2]
[334863535,1723611031593,-500.0,0.00015056,2]
[334863536,1723611031602,-726.79,0.00015056,2]
[334863537,1723611031611,-753.99,0.00015056,2]
[334863538,1723611031621,-679.35,0.00015056,2]
[334863539,1723611031630,-500.0,0.00015056,2]
[334863540,1723611031640,-500.0,0.00015056,2]
[334863541,1723611031648,-852.3,0.00015056,2]
[334863542,1723611031657,-602.44,0.00015056,2]
[334863543,1723611031666,-1489.05,0.00015056,2]
[334863544,1723611031676,-507.65,0.00015056,2]
[334863545,1723611031686,-2074.35,0.00015056,2]
[334863546,1723611031695,-575.98,0.00015056,2]
[334863547,1723611031704,-500.0,0.00015056,2]
[334863548,1723611031714,-820.41,0.00015056,2]
[334863549,1723611031724,-564.18,0.00015056,2]
[334863550,1723611031734,-2046.55,0.00015056,2]
[334863551,1723611031744,-1257.48,0.00015056,2]
[334863552,1723611031753,-1076.5,0.00015056,2]
[334863553,1723611031762,-938.15,0.00015056,2]
[334863554,1723611031771,-510.90288524,0.00015056,2]
[334863555,1723611031781,-500.0,0.00015056,2]
[334863556,1723611031790,-811.48,0.00015056,2]
[334863557,1723611031799,-4148.11,0.00015056,2]
[334863558,1723611031808,-1483.25,0.00015056,2]
[334863560,1723611031817,-500.0,0.00015056,2]
[334863562,1723611031826,-1002.11,0.00015056,2]
[334863564,1723611031835,-3543.13,0.00015056,2]
[334863566,1723611031845,-703.86,0.00015056,2]
[334863569,1723611031855,-704.86,0.00015056,2]
[334863572,1723611031864,-6696.24,0.00015056,2]
[334863575,1723611031881,-667.95,0.00015056,2]
[334863577,1723611031890,-1157.42,0.00015056,2]
[334863579,1723611031899,-500.0,0.00015056,2]
[334863581,1723611031908,-615.8,0.00015056,2]
[334863583,1723611031918,-500.0,0.00015056,2]
[334863585,1723611031927,-863.04,0.00015056,2]
[334863587,1723611031936,-1165.88,0.00015056,2]
[334863589,1723611031946,-541.3,0.00015056,2]
[334863591,1723611031955,-500.0,0.00015056,2]
[334863593,1723611031964,-43608.95224266,0.00015056,2]
[334863595,1723611031977,-3476.12861861,0.00015056,2]
[334863598,1723611031996,-10169.74457533,0.00015056,2]
[334863600,1723611032006,-550.84,0.00015057,2]
[334863602,1723611032015,-500.0,0.00015057,2]
[334863604,1723611032024,-531.99,0.00015057,2]
[334863606,1723611032033,-500.0,0.00015057,2]
[334863608,1723611032043,-733.77,0.00015057,2]
[334863610,1723611032053,-500.0,0.00015057,2]
[334863612,1723611032062,-1690.75,0.00015057,2]
[334863614,1723611032071,-500.0,0.00015057,2]
[334863616,1723611032080,-500.0,0.00015057,2]
[334863618,1723611032089,-868.72,0.00015057,2]
[334863620,1723611032099,-689.2,0.00015057,2]
[334863622,1723611032108,-500.0,0.00015057,2]
[334863624,1723611032118,-856.85,0.00015057,2]
[334863626,1723611032127,-1050.73,0.00015057,2]
[334863628,1723611032136,-500.0,0.00015057,2]
[334863630,1723611032146,-652.85,0.00015057,2]
[334863632,1723611032155,-440.7395187,0.00015057,2]
[334863636,1723611032194,-59.2604813,0.00015057,2]
[334863638,1723611032203,-440.7395187,0.00015057,2]
[334863641,1723611032219,-865.6504813,0.00015057,2]
[334863643,1723611032228,-500.0,0.00015057,2]
[334863645,1723611032238,-538.99481294,0.00015057,2]
[334863647,1723611032249,-619.89518706,0.00015057,2]
[334863649,1723611032259,-539.01,0.00015057,2]
[334863650,1723611032268,-500.0,0.00015057,2]
[334863652,1723611032277,-360.12434136,0.00015057,2]
[334863673,1723611034315,500.0,0.00014244,2]
[334863674,1723611034584,500.0,0.00014518,2]
[334863675,1723611034848,500.0,0.00014792,2]
[334863676,1723611036611,500.0,0.00014235,2]
[334863677,1723611036870,500.0,0.00014509,2]
[334863680,1723611037147,500.0,0.00014783,2]
[334863684,1723611037230,2704.56,0.00014244,2]
[334863689,1723611037418,-326.77791795,0.00015056,2]
[334863690,1723611037478,2704.56,0.00014518,2]
[334863691,1723611037490,-931.71208205,0.00015056,2]
[334863692,1723611037500,-500.0,0.00015056,2]
[334863693,1723611037509,-2066.53,0.00015056,2]
[334863694,1723611037519,-139.87565864,0.00015057,2]
[334863695,1723611037528,-500.0,0.00015057,2]
[334863696,1723611037537,-1392.04,0.00015057,2]
[334863697,1723611037546,-500.0,0.00015057,2]
[334863698,1723611037555,-764.24,0.00015057,2]
[334863699,1723611037564,-500.0,0.00015057,2]
[334863700,1723611037574,-500.0,0.00015057,2]
[334863701,1723611037583,-222.7406954,0.00015057,2]
[334863702,1723611037595,-201.07650582,0.00015057,2]
[334863703,1723611037604,-107.59216077,0.00015057,2]
[334863704,1723611037615,-392.40783923,0.00015057,2]
[334863705,1723611037625,-411.59212664,0.00015057,2]
[334863706,1723611037636,-88.40787336,0.00015057,2]
[334863707,1723611037645,-500.0,0.00015057,2]
[334863708,1723611037654,-206.46014664,0.00015057,2]
[334863709,1723611037666,-293.53985336,0.00015057,2]
[334863710,1723611037675,-209.19296969,0.00015057,2]
[334863711,1723611037684,-500.0,0.00015057,2]
[334863712,1723611037693,-500.0,0.00015057,2]
[334863713,1723611037703,-500.0,0.00015057,2]
[334863714,1723611037712,-500.0,0.00015057,2]
[334863715,1723611037722,-500.0,0.00015057,2]
[334863716,1723611037731,-500.0,0.00015057,2]
[334863717,1723611037740,-500.0,0.00015057,2]
[334863718,1723611037750,-500.0,0.00015057,2]
[334863719,1723611037759,-500.0,0.00015057,2]
[334863720,1723611037769,-500.0,0.00015057,2]
[334863721,1723611037779,-500.0,0.00015057,2]
[334863722,1723611037788,-500.0,0.00015057,2]
[334863723,1723611037798,-500.0,0.00015057,2]
[334863724,1723611037807,-500.0,0.00015057,2]
[334863726,1723611037816,-500.0,0.00015057,2]
[334863727,1723611037826,-43.75060244,0.00015057,2]
[334863729,1723611037838,-456.24939756,0.00015057,2]
[334863730,1723611037847,-500.0,0.00015057,2]
[334863731,1723611037856,-500.0,0.00015057,2]
[334863732,1723611037865,-500.0,0.00015057,2]
[334863734,1723611037875,-857.51,0.00015057,2]
[334863736,1723611037885,-500.0,0.00015057,2]
[334863738,1723611037894,-500.0,0.00015057,2]
[334863740,1723611037904,-500.0,0.00015057,2]
[334863742,1723611037913,-500.0,0.00015057,2]
[334863744,1723611037923,-616.3,0.00015057,2]
[334863745,1723611037933,-500.0,0.00015057,2]
[334863746,1723611037943,-500.0,0.00015057,2]
[334863747,1723611037952,-500.0,0.00015057,2]
[334863748,1723611037962,-500.0,0.00015057,2]
[334863749,1723611037972,-500.0,0.00015057,2]
[334863750,1723611037981,-500.0,0.00015057,2]
[334863751,1723611037991,-522.17,0.00015057,2]
[334863752,1723611038000,-500.0,0.00015057,2]
[334863753,1723611038009,-834.38873414,0.00015057,2]
[334863754,1723611038021,-120.15126586,0.00015057,2]
[334863755,1723611038032,-398.92702896,0.00015057,2]
[334863756,1723611038097,2704.56,0.00014792,2]
[334863757,1723611038110,-243.56297104,0.00015057,2]
[334863758,1723611038119,-798.77,0.00015057,2]
[334863759,1723611038130,-573.47,0.00015057,2]
[334863760,1723611038139,-757.15,0.00015057,2]
[334863761,1723611038149,-500.0,0.00015057,2]
[334863762,1723611038159,-1334.58,0.00015057,2]
[334863763,1723611038169,-778.49,0.00015057,2]
[334863764,1723611038178,-565.42,0.00015057,2]
[334863765,1723611038188,-605.78,0.00015057,2]
[334863766,1723611038197,-500.0,0.00015057,2]
[334863767,1723611038207,-182.64426638,0.00015057,2]
[334863768,1723611038216,-500.0,0.00015057,2]
[334863769,1723611038226,-185.35675364,0.00015057,2]
[334863770,1723611038236,-500.0,0.00015057,2]
[334863771,1723611038246,-500.0,0.00015057,2]
[334863772,1723611038258,-500.0,0.00015057,2]
[334863773,1723611038268,-581.05,0.00015057,2]
[334863774,1723611038278,-500.0,0.00015057,2]
[334863775,1723611038288,-500.0,0.00015057,2]
[334863776,1723611038298,-500.0,0.00015057,2]
[334863777,1723611038309,-500.0,0.00015057,2]
[334863778,1723611038321,-500.0,0.00015057,2]
[334863779,1723611038332,-500.0,0.00015057,2]
[334863780,1723611038344,-674.51,0.00015057,2]
[334863781,1723611038357,-500.0,0.00015057,2]
[334863782,1723611038368,-500.0,0.00015057,2]
[334863783,1723611038379,-500.0,0.00015057,2]
[334863784,1723611038389,-500.0,0.00015057,2]
[334863785,1723611038399,-500.0,0.00015057,2]
[334863786,1723611038409,-500.0,0.00015057,2]
[334863787,1723611038419,-500.0,0.00015057,2]
[334863788,1723611038429,-500.0,0.00015057,2]
[334863789,1723611038439,-934.79,0.00015057,2]
[334863790,1723611038448,-1232.75,0.00015057,2]
[334863791,1723611038458,-500.0,0.00015057,2]
[334863792,1723611038469,-500.0,0.00015057,2]
[334863793,1723611038479,-500.0,0.00015057,2]
[334863794,1723611038488,-500.0,0.00015057,2]
[334863795,1723611038497,-358.23486079,0.00015057,2]
[334863796,1723611038506,-500.0,0.00015057,2]
[334863797,1723611038516,-500.0,0.00015057,2]
[334863798,1723611038526,-500.0,0.00015057,2]
[334863799,1723611038535,-500.0,0.00015057,2]
[334863800,1723611038544,-500.0,0.00015057,2]
[334863801,1723611038554,-500.0,0.00015057,2]
[334863802,1723611038563,-500.0,0.00015057,2]
[334863803,1723611038573,-500.0,0.00015057,2]
[334863804,1723611038582,-500.0,0.00015057,2]
[334863805,1723611038592,-500.0,0.00015057,2]
[334863806,1723611038601,-163.17695872,0.00015057,2]
[334863807,1723611038611,-581.92,0.00015057,2]
[334863808,1723611038620,-540.71,0.00015057,2]
[334863809,1723611038633,-500.0,0.00015057,2]
[334863810,1723611038643,-500.0,0.00015057,2]
[334863811,1723611038652,-500.0,0.00015057,2]
[334863812,1723611038661,-500.0,0.00015057,2]
[334863813,1723611038671,-794.62,0.00015057,2]
[334863814,1723611038680,-500.0,0.00015057,2]
[334863815,1723611038689,-500.0,0.00015057,2]
[334863816,1723611038698,-1296.93,0.00015057,2]
[334863817,1723611038708,-500.0,0.00015057,2]
[334863818,1723611038718,-500.0,0.00015057,2]
[334863819,1723611038728,-739.25,0.00015057,2]
[334863820,1723611038740,-500.0,0.00015057,2]
[334863821,1723611038750,-500.0,0.00015057,2]
[334863822,1723611038761,-500.0,0.00015057,2]
[334863823,1723611038770,-525.87,0.00015057,2]
[334863824,1723611038779,-520.65,0.00015057,2]
[334863825,1723611038789,-500.0,0.00015057,2]